bitfinex/quotes_SOLUSD_20250307
["timestamp","ask_amount","ask_price","bid_price","bid_amount"]
[1741387129161,82.3,142.22,142.17,49.00967748]
[1741387129356,82.3,142.22,142.18,32.49515882]
[1741387130954,82.3,142.22,142.12,18.64964886]
[1741387130955,90.65018028,142.22,142.16,32.49515882]
[1741387131154,123.1453391,142.22,142.14,32.49515882]
[1741387131438,139.41312336,142.22,142.14,48.76294308]
[1741387131664,89.3314,142.22,142.15,48.76294308]
[1741387132658,82.3,142.22,142.17,48.76294308]
[1741387134366,89.3314,142.22,142.17,48.76294308]
[1741387134956,82.3,142.22,142.17,55.79644308]
[1741387135758,89.3314,142.22,142.17,55.79644308]
[1741387135954,89.3314,142.22,142.1,56.79594308]
[1741387135955,18.64964886,142.2,142.1,56.79594308]
[1741387136138,90.22,142.19,142.12,48.76294308]
[1741387136334,91.53907281,142.19,142.12,48.76294308]
[1741387136938,7.0333,142.18,142.12,48.76294308]
[1741387137134,7.0333,142.18,142.11,7.0368]
[1741387137340,68.73183542,142.17,142.1,7.0701]
[1741387137562,82.3,142.16,142.1,7.0701]
[1741387138538,7.0348,142.15,142.1,7.0701]
[1741387138936,7.0348,142.15,142.1,55.83304308]
[1741387139565,7.0348,142.15,142.1,48.79594308]
[1741387139863,131.06294308,142.14,142.1,0.033]
[1741387140041,90.18,142.13,142.1,0.033]
[1741387141065,90.18,142.13,142.1,7.0701]
[1741387141258,90.18,142.13,142.1,55.83304308]
[1741387141554,90.18,142.13,142.1,48.79594308]
[1741387141756,90.18,142.13,142.1,0.033]
[1741387142550,97.2159,142.13,142.1,0.033]
[1741387143144,18.64964886,142.11,142.1,0.033]
[1741387143446,67.41259194,142.11,142.1,0.033]
[1741387143647,18.64964886,142.09,142.02,48.76294308]
[1741387143851,83.62014247,142.08,142.01,48.76294308]
[1741387144161,90.12,142.07,142.01,48.76294308]
[1741387144342,90.12,142.07,142.02,48.76294308]
[1741387144938,82.3,142.06,142.01,48.76294308]
[1741387145867,89.3393,142.06,142.01,48.76294308]
[1741387146249,82.3,142.06,142.03,48.76294308]
[1741387146553,82.3,142.06,142.04,48.76294308]
[1741387147365,7.78,142.12,142.05,48.76294308]
[1741387147562,7.78,142.12,142.08,48.76294308]
[1741387147741,7.78,142.12,142.09,7.0377]
[1741387148462,85.3972,142.16,142.11,48.76294308]
[1741387148652,82.3,142.16,142.12,48.76294308]
[1741387148860,82.3,142.16,142.11,48.76294308]
[1741387149062,82.3,142.16,142.12,48.76294308]
[1741387149263,17.5808,142.21,142.09,24.6321]
[1741387149264,82.3,142.2,142.14,48.76294308]
[1741387149481,82.3,142.2,142.18,48.76294308]
[1741387149766,0.03,142.21,142.19,55.79574308]
[1741387149969,0.03,142.21,142.2,48.76294308]
[1741387151371,0.03,142.22,142.2,48.76294308]
[1741387151547,0.03,142.22,142.21,48.76294308]
[1741387151938,0.03,142.22,142.21,55.79474308]
[1741387152142,0.03,142.28,142.21,140.78693502]
[1741387152372,0.03,142.28,142.27,48.76294308]
[1741387153986,0.03,142.28,142.27,55.79174308]
[1741387154173,82.3,142.35,142.27,55.79174308]
[1741387154365,82.3,142.35,142.3,48.76294308]
[1741387154880,48.76294308,142.32,142.22,10.97151825]
[1741387155050,132.38099215,142.31,142.24,48.76294308]
[1741387155245,48.76294308,142.29,142.22,59.73446133]
[1741387155471,48.76294308,142.26,142.22,10.97151825]
[1741387155652,82.3,142.25,142.22,10.97151825]
[1741387155848,7.7,142.24,142.22,10.97151825]
[1741387156246,7.7,142.24,142.19,48.76294308]
[1741387156666,7.7,142.24,142.18,48.76294308]
[1741387156870,7.7,142.24,142.19,48.76294308]
[1741387157053,14.7306,142.24,142.18,48.76294308]
[1741387157247,48.76294308,142.22,142.15,10.97151825]
[1741387157448,48.76294308,142.22,142.15,48.76294308]
[1741387158246,48.76294308,142.22,142.14,7.0352]
[1741387158445,131.06294308,142.23,142.16,48.76294308]
[1741387159862,82.3,142.23,142.17,48.76294308]
[1741387160773,82.3,142.23,142.18,48.76294308]
[1741387161358,48.76294308,142.22,142.15,0.033]
[1741387161568,48.76294308,142.21,142.15,48.79594308]
[1741387161759,48.76294308,142.22,142.15,48.79594308]
[1741387161962,132.38145727,142.23,142.16,48.76294308]
[1741387162275,82.3,142.23,142.18,48.76294308]
[1741387162453,7.74,142.25,142.21,48.76294308]
[1741387162653,1.31825785,142.28,142.23,48.76294308]
[1741387162869,83.61817511,142.29,142.23,48.76294308]
[1741387163069,82.3,142.29,142.24,48.76294308]
[1741387163548,82.3,142.29,142.21,24.6114]
[1741387163549,0.03,142.31,142.23,18.64964886]
[1741387163759,0.03,142.31,142.29,48.76294308]
[1741387163982,0.03,142.31,142.3,48.76294308]
[1741387164393,0.03,142.31,142.3,67.41259194]
[1741387164586,0.03,142.31,142.3,55.79034308]
[1741387165361,82.3,142.43,142.31,18.64964886]
[1741387165561,82.3,142.43,142.38,48.76294308]
[1741387165982,82.3,142.43,142.39,48.76294308]
[1741387166276,82.3,142.43,142.38,48.76294308]
[1741387166487,82.3,142.43,142.39,48.76294308]
[1741387166691,82.3,142.43,142.39,55.78544308]
[1741387167063,0.03,142.46,142.42,48.76294308]
[1741387167261,6.95171368,142.56,142.45,116.17553502]
[1741387167462,5.6356881,142.56,142.51,48.76294308]
[1741387167683,90.1,142.57,142.45,6.555]
[1741387167871,48.76294308,142.58,142.51,48.76294308]
[1741387168062,82.3,142.57,142.51,48.76294308]
[1741387168684,82.3,142.57,142.51,55.77944308]
[1741387168880,82.3,142.57,142.53,48.76294308]
[1741387169183,1.9920417,142.6,142.53,48.76294308]
[1741387169490,1.9920417,142.6,142.54,48.76294308]
[1741387169703,82.3,142.59,142.54,48.76294308]
[1741387169998,82.3,142.59,142.49,18.64964886]
[1741387169999,131.06294308,142.59,142.52,48.76294308]
[1741387170171,33.41958356,142.58,142.53,10.97151825]
[1741387170363,33.41958356,142.58,142.53,48.76294308]
[1741387170563,33.41958356,142.58,142.56,48.76294308]
[1741387170883,1.9920417,142.6,142.53,18.64964886]
[1741387171186,1.9920417,142.6,142.59,48.76294308]
[1741387171486,1.9920417,142.6,142.56,48.76294308]
[1741387171680,1.9920417,142.6,142.53,18.64964886]
[1741387171875,1.9920417,142.6,142.5,17.98871825]
[1741387172070,33.41958356,142.59,142.52,48.76294308]
[1741387172274,33.41958356,142.59,142.55,48.76294308]
[1741387172787,33.41958356,142.59,142.53,48.76294308]
[1741387172996,0.03,142.57,142.53,48.76294308]
[1741387173176,0.03,142.57,142.5,17.98901825]
[1741387173372,50.10830369,142.57,142.5,10.97151825]
[1741387173586,48.76294308,142.55,142.48,48.76294308]
[1741387173791,8.34,142.54,142.47,101.35824183]
[1741387173975,41.75958356,142.54,142.47,52.59529875]
[1741387174172,1.31593718,142.53,142.47,52.59529875]
[1741387174373,50.07888026,142.53,142.47,52.59529875]
[1741387174879,48.76294308,142.52,142.47,52.59529875]
[1741387175095,33.41958356,142.51,142.47,52.59529875]
[1741387175393,33.41958356,142.5,142.47,52.59529875]
[1741387175579,33.41958356,142.49,142.43,48.76294308]
[1741387175777,1.31632771,142.49,142.43,48.76294308]
[1741387176089,8.28,142.48,142.43,48.76294308]
[1741387176876,57.04294308,142.52,142.45,48.76294308]
[1741387177080,50.07914427,142.51,142.43,48.76294308]
[1741387177283,48.76294308,142.5,142.43,48.76294308]
[1741387177592,1.31637326,142.49,142.44,48.76294308]
[1741387177789,50.07929792,142.51,142.44,48.76294308]
[1741387177975,50.07929792,142.51,142.4,7.022]
[1741387178178,82.3,142.48,142.43,48.76294308]
[1741387178598,82.3,142.48,142.42,48.76294308]
[1741387178787,83.61649232,142.47,142.4,48.76294308]
[1741387178988,8.24,142.46,142.41,48.76294308]
[1741387179185,8.24,142.46,142.42,48.76294308]
[1741387179485,8.24,142.46,142.43,48.76294308]
[1741387179685,8.24,142.46,142.45,48.76294308]
[1741387179882,82.3,142.47,142.45,48.76294308]
[1741387180282,82.3,142.47,142.44,48.76294308]
[1741387180685,89.319,142.47,142.39,7.0229]
[1741387180881,89.319,142.47,142.41,48.76294308]
[1741387181195,90.63551431,142.47,142.41,48.76294308]
[1741387181393,82.3,142.47,142.43,48.76294308]
[1741387181591,15.2576,142.5,142.45,48.76294308]
[1741387181993,50.07908705,142.49,142.42,48.76294308]
[1741387182299,7.0185,142.48,142.39,7.0229]
[1741387182484,7.0185,142.48,142.42,48.76294308]
[1741387182691,7.0185,142.48,142.41,48.76294308]
[1741387183796,7.0185,142.48,142.42,48.76294308]
[1741387184877,7.0185,142.48,142.43,48.76294308]
[1741387185071,8.33476405,142.48,142.43,48.76294308]
[1741387185289,48.76294308,142.47,142.41,0.033]
[1741387185495,55.78294308,142.45,142.41,0.033]
[1741387185695,8.14,142.44,142.41,0.033]
[1741387186015,48.76294308,142.43,142.41,0.033]
[1741387186301,149.71259194,142.42,142.41,0.033]
[1741387186497,67.41259194,142.42,142.41,0.033]
[1741387186687,68.72978762,142.42,142.41,0.033]
[1741387188002,75.75118762,142.42,142.41,0.033]
[1741387188682,7.0214,142.42,142.41,0.033]
[1741387188883,57.10150746,142.42,142.41,0.033]
[1741387191790,50.08010746,142.42,142.41,0.033]
[1741387191994,8.33856438,142.42,142.41,0.033]
[1741387193376,65.12150746,142.42,142.41,0.033]
[1741387193791,65.12150746,142.42,142.32,48.76294308]
[1741387193792,82.67520746,142.42,142.28,18.64964886]
[1741387194080,48.76294308,142.35,142.27,55.48504308]
[1741387194385,91.63783996,142.34,142.27,55.48504308]
[1741387194580,91.63783996,142.34,142.28,48.76294308]
[1741387194888,91.63783996,142.34,142.29,48.76294308]
[1741387195198,98.66333996,142.34,142.29,7.0276]
[1741387195701,98.66333996,142.34,142.28,55.79114308]
[1741387196006,91.63783996,142.34,142.28,55.79114308]
[1741387198007,91.63783996,142.34,142.28,55.82414308]
[1741387198800,7.0236,142.38,142.31,48.76294308]
[1741387198999,7.94,142.37,142.32,48.76294308]
[1741387199307,7.94,142.37,142.33,32.4333871]
[1741387199492,7.94,142.37,142.34,32.4333871]
[1741387199812,82.3,142.39,142.33,32.4333871]
[1741387199991,90.24,142.39,142.34,32.4333871]
[1741387200188,82.3,142.39,142.31,51.08303596]
[1741387200407,32.4333871,142.37,142.3,32.4333871]
[1741387200611,33.75087975,142.36,142.28,7.0612]
[1741387200904,82.3,142.35,142.32,32.4333871]
[1741387201306,82.3,142.35,142.3,58.11043596]
[1741387201508,89.325,142.35,142.29,7.0277]
[1741387201715,90.64268147,142.35,142.29,7.0277]
[1741387201906,82.3,142.34,142.28,39.4946871]
[1741387202709,1.31778812,142.33,142.28,0.033]
[1741387202918,7.92,142.32,142.28,0.033]
[1741387203410,82.3,142.31,142.28,0.033]
[1741387203624,1.31787454,142.3,142.28,0.033]
[1741387204191,114.7333871,142.29,142.28,0.033]
[1741387204609,33.75178462,142.29,142.28,0.033]
[1741387204925,41.65178462,142.29,142.28,0.033]
[1741387205224,48.67968462,142.29,142.28,0.033]
[1741387207201,64.97737582,142.29,142.28,0.033]
[1741387207402,16.24629752,142.29,142.28,0.033]
[1741387207915,64.97737582,142.29,142.28,0.033]
[1741387213995,64.97737582,142.29,142.28,0.0001]
[1741387214201,82.2669,142.27,142.17,67.38072716]
[1741387214400,48.7310783,142.23,142.17,7.0336]
[1741387214615,91.32579364,142.22,142.17,7.0336]
[1741387215023,82.2669,142.21,142.15,18.68264886]
[1741387215226,1.31901853,142.2,142.15,7.0676]
[1741387215726,50.05009683,142.2,142.15,0.033]
[1741387215925,1.31901853,142.2,142.15,7.0674]
[1741387216135,1.31901853,142.2,142.15,55.7984783]
[1741387216313,83.58589442,142.21,142.16,48.7310783]
[1741387216500,83.58589442,142.21,142.18,18.64964886]
[1741387216501,82.2669,142.21,142.18,18.64964886]
[1741387216703,7.74,142.22,142.18,67.38072716]
[1741387216916,7.74,142.22,142.18,18.64964886]
[1741387217126,7.74,142.22,142.18,67.38072716]
[1741387218843,82.2669,142.24,142.21,48.7310783]
[1741387219140,82.2669,142.24,142.23,48.7310783]
[1741387219340,82.2669,142.24,142.22,48.7310783]
[1741387220826,82.2669,142.24,142.23,7.0308]
[1741387223423,152.26,142.26,142.23,74.41152716]
[1741387223623,82.2669,142.28,142.25,48.7310783]
[1741387224008,7.6,142.3,142.26,48.7310783]
[1741387224205,89.8669,142.31,142.26,48.7310783]
[1741387224509,89.8669,142.31,142.27,48.7310783]
[1741387224716,89.8669,142.31,142.26,48.7310783]
[1741387225123,82.2669,142.31,142.27,18.64964886]
[1741387225427,82.2669,142.31,142.28,7.0283]
[1741387225617,48.7310783,142.29,142.21,48.7310783]
[1741387225813,83.58526391,142.28,142.2,18.64964886]
[1741387226014,7.6,142.27,142.2,18.64964886]
[1741387226214,1.31843037,142.26,142.2,18.64964886]
[1741387226725,132.31640867,142.26,142.19,7.0328]
[1741387227029,48.7310783,142.25,142.19,18.64964886]
[1741387227230,7.6,142.27,142.18,0.033]
[1741387227231,132.31671034,142.24,142.18,0.033]
[1741387227537,48.7310783,142.23,142.18,0.033]
[1741387227707,90.61709539,142.22,142.18,0.033]
[1741387227903,7.6,142.21,142.18,0.033]
[1741387237810,14.6318,142.21,142.18,0.033]
[1741387238137,7.6,142.21,142.18,0.033]
[1741387238538,14.6319,142.21,142.18,0.033]
[1741387238837,14.6318,142.21,142.18,0.033]
[1741387239041,7.6,142.21,142.18,0.033]
[1741387240322,14.6318,142.21,142.18,0.033]
[1741387240834,83.58585124,142.2,142.18,0.033]
[1741387241035,82.2669,142.19,142.18,0.033]
[1741387241221,89.2997,142.19,142.18,0.033]
[1741387241422,121.80380087,142.19,142.18,0.033]
[1741387241737,39.53690087,142.19,142.18,0.033]
[1741387242739,7.0328,142.19,142.18,0.033]
[1741387243040,33.82305211,142.2,142.18,0.033]
[1741387243539,1.31895124,142.2,142.18,0.033]
[1741387245241,8.91901406,142.21,142.18,0.033]
[1741387248026,7.6,142.2,142.18,0.033]
[1741387250052,7.6,142.2,142.18,7.0663]
[1741387253053,7.6,142.2,142.18,32.53710087]
[1741387254131,82.3,142.21,142.18,32.53710087]
[1741387254737,7.6,142.22,142.18,32.53710087]
[1741387255139,7.6,142.22,142.19,7.0328]
[1741387256937,7.6,142.22,142.19,44.92500022]
[1741387259460,82.3,142.23,142.2,20.31010022]
[1741387259758,82.3,142.24,142.21,20.31010022]
[1741387260452,152.31,142.27,142.23,20.31010022]
[1741387260668,152.31,142.27,142.24,38.95974908]
[1741387260959,152.31,142.27,142.25,20.31010022]
[1741387261156,152.31,142.27,142.24,38.95974908]
[1741387261353,0.03,142.27,142.26,38.95974908]
[1741387261559,0.03,142.27,142.26,45.98904908]
[1741387262052,82.3,142.32,142.31,20.31010022]
[1741387262254,82.3,142.35,142.31,20.31010022]
[1741387262440,7.6,142.36,142.34,20.31010022]
[1741387262634,7.6,142.36,142.35,20.31010022]
[1741387262841,10.71260022,142.39,142.35,38.95974908]
[1741387263155,10.71260022,142.39,142.38,38.95974908]
[1741387263353,10.71260022,142.39,142.38,51.05501626]
[1741387263957,82.33,142.41,142.38,58.07841626]
[1741387264143,82.33,142.41,142.38,51.05501626]
[1741387265550,82.33,142.41,142.38,18.64964886]
[1741387266447,82.33,142.41,142.39,32.4053674]
[1741387266955,82.33,142.41,142.38,57.49441626]
[1741387269540,0.03,142.41,142.4,32.4053674]
[1741387270169,0.03,142.41,142.38,13.4627]
[1741387270344,0.03,142.41,142.4,51.05501626]
[1741387274084,0.03,142.41,142.4,58.07741626]
[1741387274649,0.03,142.41,142.4,18.64964886]
[1741387274863,32.4353674,142.41,142.35,18.64964886]
[1741387275262,0.03,142.41,142.35,18.64964886]
[1741387275454,0.03,142.41,142.35,51.05501626]
[1741387276776,39.4572674,142.41,142.35,18.64964886]
[1741387276970,116.022422,142.4,142.35,18.64964886]
[1741387277269,114.7053674,142.39,142.3,13.4663]
[1741387277453,24.6068,142.41,142.3,13.4663]
[1741387277454,32.4053674,142.37,142.3,32.4053674]
[1741387277654,41.30286482,142.36,142.29,32.4053674]
[1741387277852,32.4053674,142.35,142.29,18.64964886]
[1741387278265,82.3,142.34,142.28,32.4053674]
[1741387278464,82.3,142.34,142.3,32.4053674]
[1741387278664,82.3,142.34,142.29,18.64964886]
[1741387278859,82.3,142.34,142.32,32.4053674]
[1741387279570,82.3,142.34,142.31,32.4053674]
[1741387280279,82.3,142.34,142.32,32.4053674]
[1741387281279,82.3,142.34,142.31,51.05501626]
[1741387281663,82.3,142.34,142.31,18.64964886]
[1741387281977,82.3,142.34,142.31,32.4053674]
[1741387284058,82.3,142.34,142.32,32.4053674]
[1741387284556,82.3,142.34,142.31,39.4320674]
[1741387285352,82.3,142.34,142.31,27.29927196]
[1741387286380,82.3,142.34,142.32,27.29887196]
[1741387286582,82.3,142.34,142.32,7.0263]
[1741387291272,82.3,142.34,142.32,20.27257196]
[1741387291473,82.3,142.34,142.31,27.29947196]
[1741387293513,82.3,142.34,142.32,20.27257196]
[1741387293678,0.03,142.35,142.32,18.64964886]
[1741387294000,0.03,142.35,142.34,38.92222082]
[1741387294873,0.03,142.35,142.34,45.94762082]
[1741387296691,20.30257196,142.41,142.35,18.64964886]
[1741387296692,82.33,142.41,142.35,18.64964886]
[1741387296902,82.33,142.41,142.4,38.92222082]
[1741387296903,0.03,142.41,142.4,38.92222082]
[1741387298371,0.03,142.41,142.37,7.0239]
[1741387298670,7.61,142.41,142.32,25.67604886]
[1741387298881,7.61,142.41,142.36,18.64964886]
[1741387299276,7.61,142.41,142.37,38.92222082]
[1741387299689,7.61,142.41,142.38,20.27257196]
[1741387299887,7.61,142.41,142.39,20.27257196]
[1741387299888,0.03,142.41,142.39,20.27257196]
[1741387300080,0.03,142.41,142.4,38.92222082]
[1741387300567,0.03,142.41,142.4,45.94462082]
[1741387301077,0.03,142.42,142.41,28.55324886]
[1741387301275,6.6196,142.56,142.41,69.09839278]
[1741387301276,89.3152,142.55,142.41,69.09839278]
[1741387301478,82.3,142.54,142.49,20.27257196]
[1741387301674,83.61583676,142.54,142.49,18.64964886]
[1741387302192,103.88840872,142.54,142.48,18.64964886]
[1741387302392,20.27257196,142.53,142.47,18.64964886]
[1741387302573,21.58864122,142.52,142.45,20.27257196]
[1741387302775,20.27257196,142.48,142.42,18.64964886]
[1741387302974,91.19650663,142.47,142.42,18.64964886]
[1741387303179,89.88,142.47,142.42,18.64964886]
[1741387304892,89.88,142.47,142.43,32.389313]
[1741387305276,89.88,142.47,142.44,32.389313]
[1741387305677,89.88,142.47,142.43,32.389313]
[1741387305877,89.88,142.47,142.42,39.410613]
[1741387306591,89.88,142.47,142.42,32.389313]
[1741387306784,91.19646341,142.47,142.42,32.389313]
[1741387306984,91.19646341,142.47,142.42,39.410613]
[1741387307293,98.21556341,142.47,142.42,32.389313]
[1741387307680,130.60487641,142.47,142.4,32.389313]
[1741387308296,98.21556341,142.47,142.4,32.389313]
[1741387308499,130.60487641,142.47,142.4,32.389313]
[1741387308700,89.3197,142.46,142.4,39.411513]
[1741387309000,1.31668239,142.45,142.41,32.389313]
[1741387309202,82.3,142.46,142.42,32.389313]
[1741387309383,82.3,142.46,142.43,32.389313]
[1741387310383,82.3,142.46,142.42,32.389313]
[1741387310785,82.3,142.46,142.43,32.389313]
[1741387311501,7.58,142.45,142.44,32.389313]
[1741387311889,7.58,142.45,142.43,32.389313]
[1741387312401,82.3,142.46,142.43,32.389313]
[1741387312602,0.03,142.47,142.45,32.389313]
[1741387312899,0.03,142.47,142.46,32.389313]
[1741387313301,0.03,142.47,142.45,32.389313]
[1741387313603,0.03,142.47,142.44,32.389313]
[1741387313780,0.03,142.47,142.43,32.389313]
[1741387313980,7.58,142.46,142.43,32.389313]
[1741387314397,7.58,142.46,142.4,32.422313]
[1741387314697,32.389313,142.44,142.4,0.033]
[1741387314881,1.31694349,142.43,142.4,0.033]
[1741387315202,8.33794349,142.43,142.4,0.033]
[1741387316211,1.31694349,142.43,142.4,0.033]
[1741387317009,0.03,142.47,142.42,32.389313]
[1741387317211,0.03,142.47,142.46,32.389313]
[1741387317414,0.03,142.47,142.46,51.03896186]
[1741387318009,0.0001,142.47,142.46,51.03896186]
[1741387318384,10.54768461,142.57,142.46,51.03896186]
[1741387318385,1.9920417,142.6,142.47,21.74784886]
[1741387318585,1.9920417,142.6,142.56,32.389313]
[1741387319013,1.9920417,142.6,142.55,32.389313]
[1741387319305,1.31534725,142.59,142.54,32.389313]
[1741387319493,7.56,142.58,142.54,32.389313]
[1741387320911,7.56,142.58,142.52,32.389313]
[1741387321079,32.389313,142.56,142.49,32.389313]
[1741387321281,83.61594723,142.55,142.49,32.389313]
[1741387322285,90.63114723,142.55,142.49,32.389313]
[1741387322783,32.389313,142.53,142.46,32.389313]
[1741387322989,41.26547032,142.52,142.46,32.389313]
[1741387323189,41.26547032,142.52,142.43,28.12044886]
[1741387323190,82.3,142.51,142.45,32.389313]
[1741387323395,83.61626908,142.5,142.45,32.389313]
[1741387323902,82.3,142.49,142.45,32.389313]
[1741387324790,82.3,142.49,142.46,32.389313]
[1741387329113,82.3,142.49,142.47,32.389313]
[1741387329615,82.3,142.49,142.46,32.389313]
[1741387330602,89.86,142.49,142.46,32.389313]
[1741387332715,89.86,142.49,142.47,32.389313]
[1741387333016,89.86,142.49,142.48,32.389313]
[1741387333721,89.86,142.49,142.47,32.389313]
[1741387334996,82.3,142.49,142.47,39.408113]
[1741387335301,0.03,142.52,142.49,18.64964886]
[1741387335501,0.03,142.52,142.51,32.389313]
[1741387336601,0.03,142.52,142.51,39.406313]
[1741387337009,0.03,142.52,142.51,32.389313]
[1741387337210,0.03,142.52,142.5,7.0173]
[1741387337413,0.03,142.52,142.5,39.406613]
[1741387337606,0.03,142.52,142.5,32.389313]
[1741387338307,0.03,142.52,142.51,32.389313]
[1741387339624,0.03,142.52,142.51,39.406313]
[1741387343723,82.3,142.58,142.52,18.64964886]
[1741387343930,0.03,142.59,142.57,32.389313]
[1741387345119,0.03,142.59,142.58,32.389313]
[1741387345319,0.03,142.59,142.58,39.402913]
[1741387347735,0.03,142.59,142.57,39.403113]
[1741387347901,0.03,142.59,142.58,32.389313]
[1741387348632,0.03,142.59,142.57,39.403113]
[1741387350430,0.03,142.59,142.58,32.389313]
[1741387350627,0.03,142.59,142.57,7.0138]
[1741387350927,0.03,142.59,142.57,39.403113]
[1741387352623,0.03,142.59,142.57,32.389313]
[1741387352826,0.03,142.59,142.56,7.0145]
[1741387352827,0.03,142.59,142.56,39.403813]
[1741387353625,0.03,142.59,142.56,32.389313]
[1741387353833,0.03,142.59,142.55,39.404113]
[1741387354518,0.03,142.59,142.55,7.0148]
[1741387355111,0.03,142.59,142.55,39.404113]
[1741387357236,0.03,142.59,142.55,27.21836852]
[1741387357726,7.57,142.59,142.56,20.20356852]
[1741387359036,7.57,142.59,142.54,25.66514886]
[1741387359213,7.57,142.59,142.55,20.20356852]
[1741387359512,7.57,142.59,142.56,20.20356852]
[1741387360540,7.57,142.59,142.56,27.21796852]
[1741387360733,0.03,142.59,142.56,27.21796852]
[1741387361630,0.03,142.59,142.57,20.20356852]
[1741387361936,0.03,142.59,142.58,20.20356852]
[1741387362442,0.03,142.59,142.58,27.21716852]
[1741387363323,1.9920417,142.6,142.58,72.5385859]
[1741387363521,82.3,142.66,142.59,59.0567859]
[1741387363719,82.3,142.69,142.65,20.20356852]
[1741387363919,82.3,142.69,142.66,20.20356852]
[1741387364543,82.3,142.69,142.67,20.20356852]
[1741387365332,83.4829558,142.69,142.67,32.27346707]
[1741387366146,83.4829558,142.69,142.66,32.27346707]
[1741387366745,1.1829558,142.69,142.67,32.27346707]
[1741387367429,1.1829558,142.69,142.66,57.93271593]
[1741387367827,1.1829558,142.69,142.64,32.27346707]
[1741387368038,1.1829558,142.69,142.64,39.28376707]
[1741387368238,1.1829558,142.69,142.65,32.27346707]
[1741387371543,8.1911558,142.69,142.63,25.66064886]
[1741387371745,8.1911558,142.69,142.64,32.27346707]
[1741387372730,8.2211558,142.69,142.64,32.27346707]
[1741387372948,8.2211558,142.69,142.64,39.28396707]
[1741387373544,8.2211558,142.69,142.65,32.27346707]
[1741387373760,8.2211558,142.69,142.64,39.28396707]
[1741387373957,8.2211558,142.69,142.65,32.27346707]
[1741387375170,8.2211558,142.69,142.64,39.28396707]
[1741387376445,40.49462287,142.69,142.62,32.27346707]
[1741387376659,32.27346707,142.68,142.62,18.64964886]
[1741387376852,7.54,142.67,142.62,18.64964886]
[1741387377357,7.54,142.67,142.62,32.27346707]
[1741387377744,14.5494,142.67,142.62,39.28496707]
[1741387378730,14.5494,142.67,142.62,7.0115]
[1741387379027,14.5494,142.67,142.62,39.28496707]
[1741387380238,15.7323558,142.67,142.62,39.28496707]
[1741387380570,15.7323558,142.67,142.63,18.64964886]
[1741387380571,1.1829558,142.67,142.63,18.64964886]
[1741387380728,82.3,142.72,142.66,92.995783]
[1741387381055,82.3,142.76,142.72,18.64964886]
[1741387381656,82.3,142.76,142.71,32.27346707]
[1741387382975,82.3,142.76,142.71,39.28016707]
[1741387385153,82.33,142.76,142.71,7.0067]
[1741387385465,7.54,142.75,142.71,7.0067]
[1741387389350,102.49153481,142.76,142.71,7.0067]
[1741387389680,20.16153481,142.73,142.68,7.0086]
[1741387389859,27.68153481,142.74,142.68,7.0086]
[1741387390066,7.52,142.74,142.68,27.17013481]
[1741387390368,7.52,142.74,142.69,20.16153481]
[1741387391687,27.68153481,142.74,142.69,25.65774886]
[1741387392261,20.16153481,142.73,142.69,7.0081]
[1741387393181,28.99550748,142.74,142.69,7.0081]
[1741387393984,28.99550748,142.74,142.68,7.0086]
[1741387394579,36.00130748,142.74,142.68,7.0086]
[1741387394979,20.16153481,142.73,142.68,7.0086]
[1741387395166,102.46153481,142.73,142.68,7.0086]
[1741387395384,20.16153481,142.72,142.68,7.0086]
[1741387395676,20.16153481,142.72,142.66,17.557]
[1741387395677,20.16153481,142.72,142.66,0.033]
[1741387395884,21.47567775,142.72,142.67,7.0089]
[1741387396101,102.46153481,142.71,142.67,7.0089]
[1741387396258,82.3,142.71,142.67,7.0089]
[1741387396878,82.3,142.71,142.66,7.0425]
[1741387398304,82.3,142.71,142.66,0.033]
[1741387398604,89.3075,142.71,142.66,0.033]